bitfinex-derivatives/quotes_SOLF0:USTF0_20240824
["timestamp","ask_amount","ask_price","bid_price","bid_amount"]
[1724520022528,3.0965,161.4,161.35,3.0974]
[1724520022821,23.77,161.37,161.36,0.04165151]
[1724520023021,23.77,161.37,161.3,67.09334781]
[1724520023327,23.77,161.37,161.29,1.2342]
[1724520023328,23.77,161.35,161.16,6.2019]
[1724520023528,23.77,161.35,161.22,26.01955537]
[1724520023829,23.77,161.35,161.24,23.77]
[1724520023830,3.08446087,161.35,161.24,23.77]
[1724520024021,0.04151188,161.31,161.28,0.04182193]
[1724520024622,0.04151188,161.31,161.3,3.0984]
[1724520026521,0.04151188,161.31,161.28,0.04182193]
[1724520027319,3.0984,161.3,161.23,1.01505521]
[1724520027520,23.81151188,161.31,161.2,23.77]
[1724520027724,4.3292,161.29,161.24,3.0995]
[1724520028529,4.3292,161.29,161.25,0.04203463]
[1724520028530,26.91270682,161.28,161.25,0.04203463]
[1724520028723,23.77,161.26,161.2,1.01579114]
[1724520029029,26.8692,161.26,161.17,1.3034]
[1724520029234,23.77,161.26,161.18,1.0159564]
[1724520029430,26.88135131,161.26,161.18,4.1166564]
[1724520029725,26.8697,161.23,161.2,0.03089507]
[1724520030124,0.04119678,161.24,161.2,0.03089507]
[1724520030525,6.186,161.42,161.21,23.77]
[1724520030727,23.77,161.35,161.24,23.77]
[1724520030926,26.82589105,161.35,161.24,23.77]
[1724520031332,29.92329105,161.35,161.24,23.77]
[1724520031527,0.0455681,161.31,161.28,0.04544731]
[1724520032024,0.0455681,161.31,161.29,3.0984]
[1724520032731,0.0455681,161.31,161.28,3.14414731]
[1724520034133,0.0455681,161.31,161.29,3.0985]
[1724520034353,0.0455681,161.31,161.28,0.04544731]
[1724520034829,0.0455681,161.31,161.28,3.14414731]
[1724520035929,0.0455681,161.31,161.29,3.0985]
[1724520036631,0.0455681,161.31,161.28,0.04544731]
[1724520038635,23.8155681,161.31,161.28,0.04544731]
[1724520039025,3.0985,161.3,161.24,3.0994]
[1724520039428,3.0988,161.28,161.19,1.2324]
[1724520039631,23.77,161.27,161.19,1.2324]
[1724520039931,3.11727797,161.26,161.19,1.2324]
[1724520040229,0.04311924,161.25,161.21,0.02664454]
[1724520041838,26.91251924,161.25,161.21,0.02664454]
[1724520042141,23.81311924,161.25,161.21,0.02664454]
[1724520042429,25.11441924,161.25,161.21,0.02664454]
[1724520042835,3.0999,161.23,161.21,0.02664454]
[1724520043871,3.0999,161.23,161.18,3.1006]
[1724520043872,23.77,161.22,161.18,3.1006]
[1724520044434,26.8699,161.22,161.17,3.1009]
[1724520044639,23.77,161.22,161.12,1.2374]
[1724520044938,0.04579679,161.19,161.12,1.2374]
[1724520046336,0.04579679,161.19,161.16,3.1009]
[1724520047179,0.04579679,161.19,161.15,3.1012]
[1724520047442,0.04579679,161.19,161.12,1.2374]
[1724520047443,0.04579679,161.19,161.12,25.0074]
[1724520047841,0.04579679,161.19,161.17,3.1008]
[1724520048345,0.04579679,161.19,161.18,3.1007]
[1724520048939,1.273,161.31,161.13,3.08368397]
[1724520048940,23.77,161.28,161.16,23.77]
[1724520049344,23.77,161.28,161.23,3.0997]
[1724520049544,23.77,161.28,161.16,26.91474395]
[1724520049745,25.0735,161.3,161.19,23.77]
[1724520049947,0.04025215,161.26,161.23,0.04035803]
[1724520050148,0.04025215,161.26,161.25,3.0992]
[1724520050370,23.77,161.33,161.23,0.04035803]
[1724520050562,23.77,161.49,161.2,4.38224214]
[1724520050563,26.82589105,161.35,161.24,23.77]
[1724520050843,23.77,161.35,161.24,23.77]
[1724520051448,23.77,161.49,161.28,23.81313773]
[1724520051751,23.77,161.42,161.31,23.77]
[1724520052245,2.5085,161.45,161.33,23.77]
[1724520052447,0.04371043,161.41,161.33,23.77]
[1724520052640,0.04371043,161.41,161.37,0.03925379]
[1724520054550,0.04371043,161.41,161.38,3.0968]
[1724520054853,0.04371043,161.41,161.37,0.03925379]
[1724520055165,23.77,161.4,161.37,0.03925379]
[1724520058859,23.77,161.38,161.37,0.03925379]
[1724520060846,23.77,161.38,161.33,3.0976]
[1724520061457,23.77,161.38,161.3,1.3061]
[1724520061646,3.13698147,161.39,161.3,1.3061]
[1724520061851,0.04035235,161.36,161.34,3.0974]
[1724520062049,0.04035235,161.36,161.33,0.04000395]
[1724520062547,0.04035235,161.36,161.34,3.0976]
[1724520068057,0.04035235,161.36,161.33,0.04000395]
[1724520069869,23.81035235,161.36,161.33,0.04000395]
[1724520070066,23.77,161.34,161.33,0.04000395]
[1724520070570,26.8676,161.34,161.33,0.04000395]
[1724520070963,23.77,161.34,161.27,3.0989]
[1724520071165,3.0979,161.33,161.28,3.0987]
[1724520071672,23.77,161.34,161.26,1.254]
[1724520071673,23.77,161.34,161.27,3.0989]
[1724520071971,23.77,161.31,161.29,0.04071994]
[1724520072173,3.0987,161.29,161.28,0.03942488]
[1724520072380,3.14868522,161.29,161.27,0.04288014]
[1724520072675,0.03980187,161.3,161.27,0.04288014]
[1724520073065,3.0988,161.28,161.27,0.04288014]
[1724520075573,23.77,161.29,161.22,3.0999]
[1724520075574,3.0992,161.26,161.22,3.0999]
[1724520075772,26.8692,161.26,161.22,3.0999]
[1724520076469,26.8692,161.26,161.23,3.0997]
[1724520076470,23.81118581,161.26,161.23,3.0997]
[1724520076772,0.04118581,161.26,161.19,1.254]
[1724520077173,0.04118581,161.26,161.18,44.9034]
[1724520077671,0.04118581,161.26,161.25,3.0993]
[1724520078377,0.04118581,161.26,161.24,3.0995]
[1724520079476,0.04118581,161.26,161.25,3.0993]
[1724520081475,23.77,161.36,161.23,23.77]
[1724520081680,25.0104,161.38,161.25,23.77]
[1724520081881,25.0104,161.38,161.25,26.84943843]
[1724520082081,3.0971,161.37,161.31,3.0981]
[1724520082475,0.04559649,161.36,161.32,0.04521167]
[1724520083075,0.04559649,161.36,161.32,3.14321167]
[1724520084188,0.04559649,161.36,161.32,0.04521167]
[1724520084673,0.04559649,161.36,161.34,3.0974]
[1724520085279,0.04559649,161.36,161.33,3.0978]
[1724520085680,0.04559649,161.36,161.32,0.04521167]
[1724520086585,23.81559649,161.36,161.32,0.04521167]
[1724520086991,3.0974,161.35,161.32,0.04521167]
[1724520087181,23.81559649,161.36,161.32,0.04521167]
[1724520087382,3.0978,161.33,161.32,0.04521167]
[1724520087884,23.77,161.34,161.2,23.77]
[1724520088080,3.0984,161.3,161.25,3.0992]
[1724520088976,0.04502438,161.29,161.25,3.0992]
[1724520090078,0.04502438,161.29,161.24,3.0995]
[1724520090279,3.14362438,161.29,161.24,3.0995]
[1724520090485,23.81502438,161.29,161.21,1.2333]
[1724520092088,0.04502438,161.29,161.21,1.2333]
[1724520092684,0.04502438,161.29,161.22,1.01766561]
[1724520092887,0.04502438,161.29,161.27,3.0988]
[1724520094182,0.04502438,161.29,161.28,3.0988]
[1724520096192,0.04502438,161.29,161.27,3.0989]
[1724520096587,0.04502438,161.29,161.23,23.77]
[1724520096802,0.04502438,161.29,161.28,3.0988]
[1724520096992,23.77,161.36,161.27,3.08970789]
[1724520097197,26.8674,161.36,161.3,3.0982]
[1724520097389,23.77,161.38,161.27,26.86776207]
[1724520097585,1.2667,161.39,161.3,23.77]
[1724520097891,0.04349447,161.36,161.33,0.04408661]
[1724520098813,0.04349447,161.36,161.35,3.0974]
[1724520098991,27.6148,161.47,161.36,23.77]
[1724520099896,0.04077581,161.43,161.4,0.04698933]
[1724520101190,0.04077581,161.43,161.4,3.14338933]
[1724520101691,0.04077581,161.43,161.41,3.0962]
[1724520101895,0.04077581,161.43,161.4,0.04698933]
[1724520102199,26.83171882,161.54,161.41,23.77]
[1724520102410,23.77,161.54,161.44,3.0955]
[1724520102691,23.77,161.49,161.44,3.0955]
[1724520102892,23.77,161.49,161.41,4.4852599]
[1724520103193,0.04217836,161.47,161.43,0.04279264]
[1724520103396,0.04217836,161.47,161.44,3.0955]
[1724520103892,0.04217836,161.47,161.46,3.0953]
[1724520104491,3.094,161.53,161.48,3.0948]
[1724520105395,30.75173796,161.56,161.45,23.77]
[1724520105396,3.0937,161.55,161.45,23.77]
[1724520105591,0.03903094,161.52,161.48,0.04554497]
[1724520105793,0.03903094,161.52,161.51,3.0943]
[1724520106789,1.2424,161.64,161.42,1.2017]
[1724520106790,23.77,161.62,161.5,23.77]
[1724520106998,23.77,161.62,161.5,26.89490698]
[1724520107196,23.77,161.62,161.51,1.3186]
[1724520107398,23.77,161.62,161.54,3.0936]
[1724520107594,23.77,161.59,161.51,1.3186]
[1724520107895,0.04246061,161.57,161.53,0.04009345]
[1724520108097,0.04246061,161.57,161.53,0.0412835]
[1724520108699,0.04246061,161.57,161.56,3.0934]
[1724520108902,2.5596,161.64,161.55,23.77]
[1724520108903,1.3172,161.64,161.55,23.77]
[1724520109196,23.77,161.65,161.55,23.77]
[1724520109396,23.77,161.68,161.55,23.77]
[1724520109596,23.77,161.68,161.57,23.77]
[1724520109797,23.77,161.68,161.55,23.77]
[1724520110000,0.04563106,161.63,161.6,0.04346736]
[1724520110401,3.0909,161.7,161.6,26.8482712]
[1724520110601,3.0909,161.7,161.6,23.77]
[1724520111000,3.0909,161.7,161.64,3.0918]
[1724520111203,4.4014,161.71,161.62,23.77]
[1724520111416,0.04106379,161.68,161.65,0.04712198]
[1724520111609,23.81394936,161.68,161.65,0.04554521]
[1724520112201,26.8615,161.66,161.65,0.04554521]
[1724520112405,26.8615,161.66,161.58,3.0928]
[1724520112406,23.77,161.66,161.54,64.13921769]
[1724520112908,23.77,161.64,161.54,61.07751065]
[1724520113202,23.77,161.65,161.54,61.07751065]
[1724520113401,23.77,161.59,161.58,0.0394212]
[1724520113605,0.04048692,161.6,161.57,0.04319928]
[1724520113810,0.04664027,161.6,161.57,0.04260687]
[1724520114002,3.13944027,161.6,161.57,0.04260687]
[1724520114403,0.04664027,161.6,161.57,0.04260687]
[1724520116512,3.093,161.59,161.57,0.04260687]
[1724520116909,0.04664027,161.6,161.57,0.04260687]
[1724520117105,3.0928,161.59,161.57,0.04260687]
[1724520117411,0.04664027,161.6,161.57,0.04260687]
[1724520117806,3.0928,161.59,161.57,0.04260687]
[1724520118214,3.0929,161.59,161.57,0.04260687]
[1724520118904,3.093,161.58,161.57,0.04260687]
[1724520120410,3.0929,161.59,161.57,0.04260687]
[1724520121429,0.04664027,161.6,161.57,0.04260687]
[1724520122412,3.093,161.59,161.57,0.04260687]
[1724520123814,3.13924027,161.6,161.57,0.04260687]
[1724520124207,0.04664027,161.6,161.57,0.04260687]
[1724520124413,3.0929,161.59,161.57,0.04260687]
[1724520126614,0.04664027,161.6,161.57,0.04260687]
[1724520129122,3.13924027,161.6,161.57,0.04260687]
[1724520129416,0.04664027,161.6,161.57,0.04260687]
[1724520130921,3.13934027,161.6,161.57,0.04260687]
[1724520131521,0.04664027,161.6,161.57,3.13580687]
[1724520132526,0.04664027,161.6,161.57,0.04260687]
[1724520133231,3.13944027,161.6,161.57,0.04260687]
[1724520134915,0.04664027,161.6,161.57,0.04260687]
[1724520136414,3.094,161.53,161.51,24.74]
[1724520136715,19.01,161.55,161.46,22.172623]
[1724520136912,2.517,161.6,161.51,19.01]
[1724520137221,2.517,161.6,161.53,22.1038]
[1724520137546,0.04157807,161.58,161.55,0.04096737]
[1724520138221,19.01,161.56,161.46,19.01]
[1724520138721,21.527,161.6,161.44,19.01]
[1724520138722,19.01,161.55,161.44,19.01]
[1724520138920,19.01,161.55,161.41,2.4931]
[1724520138921,19.01,161.52,161.41,2.4931]
[1724520139221,3.0955,161.46,161.45,0.04458806]
[1724520139524,19.05035314,161.48,161.45,0.04458806]
[1724520139721,3.0952,161.47,161.45,0.04458806]
[1724520139924,19.05035314,161.48,161.45,0.04458806]
[1724520140517,23.81035314,161.48,161.45,0.04458806]
[1724520140717,3.0951,161.47,161.45,0.04458806]
[1724520141266,23.81035314,161.48,161.45,0.04458806]
[1724520141267,3.0953,161.46,161.45,0.04458806]
[1724520141429,23.77,161.46,161.35,2.5181]
[1724520141618,23.77,161.46,161.33,23.77]
[1724520141823,3.0962,161.42,161.36,3.0972]
[1724520142319,0.04433947,161.41,161.37,0.04060478]
[1724520146219,0.04433947,161.41,161.37,3.13750478]
[1724520146424,0.04433947,161.41,161.37,0.04060478]
[1724520147028,0.04433947,161.41,161.4,3.0964]
[1724520148526,1.3159,161.51,161.45,3.0953]
[1724520148721,1.3159,161.51,161.4,23.77]
[1724520149524,0.04136697,161.47,161.44,0.03991105]
[1724520151125,0.04136697,161.47,161.46,3.0953]
[1724520152731,0.04136697,161.47,161.44,3.13541105]
[1724520152927,0.04136697,161.47,161.44,0.03991105]
[1724520153426,0.04136697,161.47,161.45,3.0954]
[1724520154229,0.04136697,161.47,161.46,3.0953]
[1724520157726,0.04136697,161.47,161.45,3.0953]
[1724520158226,0.04136697,161.47,161.46,3.0953]
[1724520159428,0.04136697,161.47,161.44,0.03991105]
[1724520159929,0.04136697,161.47,161.45,3.0954]
[1724520162030,0.04136697,161.47,161.44,0.03991105]
[1724520165436,0.04136697,161.47,161.45,3.0954]
[1724520166336,0.04136697,161.47,161.46,3.0953]
[1724520167333,3.0938,161.54,161.49,3.0946]
[1724520167941,19.01,161.6,161.48,19.01]
[1724520168236,19.01,161.6,161.5,19.0495256]
[1724520168237,0.04541342,161.54,161.5,19.0495256]
[1724520168935,0.04541342,161.54,161.5,22.12284147]
[1724520169138,0.04541342,161.54,161.5,19.0495256]
[1724520169542,0.04541342,161.54,161.51,3.0942]
[1724520169836,0.04541342,161.54,161.5,19.0495256]
[1724520170039,0.04541342,161.54,161.5,0.0395256]
[1724520172135,3.13931342,161.54,161.5,0.0395256]
[1724520172442,0.04541342,161.54,161.5,0.0395256]
[1724520172740,3.0948,161.49,161.42,19.01]
[1724520172945,20.2756,161.53,161.45,3.0954]
[1724520173836,0.04540623,161.51,161.47,0.04172546]
[1724520174437,3.0947,161.49,161.47,0.04172546]
[1724520174740,19.05540623,161.51,161.47,0.04172546]
[1724520175041,3.0949,161.48,161.47,0.04172546]
[1724520175940,3.0948,161.49,161.47,0.04172546]
[1724520176141,19.05540623,161.51,161.47,0.04172546]
[1724520177244,19.05540623,161.51,161.43,3.0957]
[1724520177245,3.0951,161.48,161.43,3.0957]
[1724520177438,19.01,161.51,161.4,20.2219]
[1724520177736,1.2656,161.53,161.44,19.01]
[1724520177936,3.0943,161.52,161.44,19.01]
[1724520178241,0.04292696,161.5,161.46,0.04353374]
[1724520178541,0.04292696,161.5,161.46,3.13873374]
[1724520180055,0.04292696,161.5,161.46,0.04353374]
[1724520180233,3.13752696,161.5,161.46,0.04353374]
[1724520180433,0.04292696,161.5,161.46,0.04353374]
[1724520181139,3.0948,161.49,161.46,0.04353374]
[1724520181745,3.095,161.48,161.46,0.04353374]
[1724520182842,1.2685,161.49,161.46,0.04353374]
[1724520182843,3.0951,161.47,161.46,0.04353374]
[1724520187149,3.095,161.48,161.46,0.04353374]
[1724520188245,3.0951,161.47,161.46,0.04353374]
[1724520188443,19.01,161.47,161.34,268.75]
[1724520188648,19.01,161.43,161.34,43.75]
[1724520188948,19.01,161.43,161.36,3.0971]
[1724520189148,19.01,161.4,161.3,58.86799441]
[1724520189349,0.04083719,161.37,161.33,0.04480479]
[1724520190641,3.13803719,161.37,161.33,0.04480479]
[1724520191054,3.13803719,161.37,161.33,3.14260479]
[1724520191254,19.01,161.36,161.33,0.04480479]
[1724520191474,19.01,161.34,161.33,0.04480479]
[1724520191644,19.01,161.34,161.29,3.0984]
[1724520192150,19.01,161.34,161.25,3.12738257]
[1724520192151,20.269,161.34,161.25,3.12738257]
[1724520192558,3.0979,161.33,161.27,3.0988]
[1724520192749,0.04544857,161.31,161.28,0.0400989]
[1724520194047,0.04544857,161.31,161.28,3.1387989]
[1724520194248,0.04544857,161.31,161.28,0.0400989]
[1724520194449,19.01,161.29,161.28,0.0400989]
[1724520195356,19.01,161.29,161.24,3.0993]
[1724520195555,19.01,161.29,161.21,1.2798]
[1724520195857,19.01,161.29,161.24,3.0994]
[1724520196251,0.04098044,161.28,161.24,3.0994]
[1724520197458,0.04098044,161.28,161.19,3.15890193]
[1724520197650,0.04098044,161.28,161.2,1.01784352]
[1724520197865,0.04268749,161.26,161.18,19.01]
[1724520198180,0.04268749,161.26,161.19,4.08079381]
[1724520198359,0.04268749,161.26,161.24,3.0994]
[1724520199150,0.04268749,161.26,161.23,3.0997]
[1724520199654,19.01,161.25,161.07,6.2054]
[1724520199851,0.0448803,161.21,161.16,19.01]
[1724520201754,0.0448803,161.21,161.14,43.77]
[1724520202148,0.0448803,161.21,161.14,24.76]
[1724520203762,0.0448803,161.21,161.16,3.1009]
[1724520203958,19.01,161.2,161.12,20.2631]
[1724520204171,0.04508364,161.18,161.1,19.01]
[1724520204355,0.04508364,161.18,161.11,1.01854042]
[1724520204559,0.04508364,161.18,161.1,19.01]
[1724520205657,19.05508364,161.18,161.08,1.2974]
[1724520205853,0.04582393,161.15,161.08,3.15020848]
[1724520206159,3.14722393,161.15,161.09,3.1024]
[1724520206463,22.11712288,161.14,161.08,3.15020848]
[1724520206660,25.21862288,161.14,161.09,3.1024]
[1724520206859,0.04138826,161.13,161.09,3.1024]
[1724520207279,0.04138826,161.13,161.1,3.1022]
[1724520207860,0.04138826,161.13,161.08,3.1024]
[1724520209664,3.14308826,161.13,161.07,3.1027]
[1724520210060,6.26904277,161.13,161.07,3.1027]
[1724520210256,19.01,161.1,161.06,3.1029]
[1724520210462,19.05507154,161.1,161.06,3.1029]
[1724520211160,19.05507154,161.1,161.07,3.1028]
[1724520211361,0.04507154,161.1,161.07,3.1028]
[1724520211564,0.04507154,161.1,161.03,19.01]
[1724520211767,0.04507154,161.1,161.05,3.1032]
[1724520211965,0.04507154,161.1,161.02,1.3018]
[1724520212260,0.04507154,161.1,160.98,244.01]
[1724520212261,19.01,161.08,160.98,244.01]
[1724520212465,19.01,161.08,160.99,3.08075265]
[1724520212466,0.04318981,161.06,160.99,3.08075265]
[1724520212865,0.04318981,161.06,161.0,20.2364]
[1724520213059,0.04318981,161.06,161.02,19.01]
[1724520213262,0.04318981,161.06,161.05,3.1032]
[1724520213465,2.5178,161.15,161.05,3.1032]
[1724520213466,3.02678598,161.18,161.1,19.01]
[1724520213789,21.5598,161.21,161.1,19.01]
[1724520213961,3.1007,161.18,161.1,19.01]
[1724520214264,3.12079951,161.18,161.1,19.01]
[1724520214567,0.0407307,161.16,161.13,3.1016]
[1724520215363,0.0407307,161.16,161.14,3.1014]
[1724520215762,0.0407307,161.16,161.12,0.04080956]
[1724520215957,19.01,161.15,161.12,0.04080956]
[1724520216264,19.01,161.13,161.12,0.04080956]
[1724520216466,22.1116,161.13,161.12,0.04080956]
[1724520216874,19.01,161.13,161.03,2.5648]
[1724520217065,19.01,161.1,161.03,2.5648]
[1724520217260,19.01,161.12,161.03,21.5748]
[1724520217771,9.24363023,161.35,161.03,2.5648]
[1724520217975,19.05514727,161.21,161.09,19.01]
[1724520218180,19.05514727,161.21,161.04,226.01876014]
[1724520218181,0.04460242,161.17,161.13,19.01]
[1724520218569,0.04460242,161.17,161.16,3.1011]
[1724520220676,3.03477853,161.24,161.12,23.81]
[1724520220881,3.0997,161.24,161.12,23.81]
[1724520221184,26.84508852,161.23,161.12,23.81]
[1724520221681,0.04487872,161.19,161.16,0.04548302]
[1724520221880,23.81,161.28,161.16,23.85548302]
[1724520222080,23.81,161.3,161.19,23.81]
[1724520222885,26.3498,161.33,161.21,23.81]
[1724520223089,2.5398,161.33,161.24,23.81]
[1724520223277,0.04659493,161.29,161.27,0.041611]
[1724520223477,0.04488049,161.3,161.26,23.85706157]
[1724520223672,0.04488049,161.3,161.26,23.85355432]
[1724520223873,3.0968,161.39,161.26,23.81]
[1724520224084,6.23185064,161.39,161.26,23.81]
[1724520224880,0.04511844,161.34,161.31,0.04041053]
[1724520225079,23.81,161.32,161.31,0.04041053]
[1724520225980,23.81,161.32,161.22,2.5856]
[1724520226186,23.81,161.3,161.19,23.81]
[1724520226594,3.0988,161.28,161.19,23.81]
[1724520226786,23.81,161.3,161.15,2.5098]
[1724520227086,0.043971,161.24,161.21,0.04517249]
[1724520227278,0.0433035,161.24,161.21,0.04533741]
[1724520227685,0.0433035,161.24,161.22,3.0999]
[1724520233184,0.0433035,161.24,161.21,3.14543741]
[1724520233384,0.0433035,161.24,161.21,0.04533741]
[1724520235920,0.0433035,161.24,161.21,3.14543741]
[1724520236896,0.0433035,161.24,161.22,3.0999]
[1724520237492,0.0433035,161.24,161.21,3.14543741]
[1724520239505,0.0433035,161.24,161.21,0.04533741]
[1724520243296,3.0999,161.22,161.12,20.2683]
[1724520243693,22.1397,161.23,161.17,3.1007]
[1724520243894,3.0997,161.23,161.17,3.1007]
[1724520244300,0.03975535,161.22,161.18,0.04670428]
[1724520247202,3.13965535,161.22,161.18,0.04670428]
[1724520248605,0.03975535,161.22,161.18,0.04670428]
[1724520249004,0.03975535,161.22,161.18,19.08670428]
[1724520249308,19.04,161.32,161.2,19.04]
[1724520249521,19.04,161.32,161.11,21.6268]
[1724520249522,19.04,161.32,161.23,19.04]
[1724520249899,19.04,161.32,161.24,3.0994]
[1724520250096,0.04400697,161.3,161.26,0.0454724]
[1724520250294,19.08400697,161.3,161.26,0.0454724]
[1724520251309,22.18240697,161.3,161.26,0.0454724]
[1724520251805,3.14240697,161.3,161.26,0.0454724]
[1724520252006,19.08400697,161.3,161.26,0.0454724]
[1724520252398,3.0987,161.29,161.26,0.0454724]
[1724520252812,19.08400697,161.3,161.26,0.0454724]
[1724520253198,22.18250697,161.3,161.26,0.0454724]
[1724520253402,19.08400697,161.3,161.26,0.0454724]
[1724520254106,3.0986,161.29,161.26,0.0454724]
[1724520255303,0.04400697,161.3,161.26,0.0454724]
[1724520256307,0.04400697,161.3,161.27,3.0989]
[1724520257213,0.04400697,161.3,161.28,3.0988]
[1724520257715,0.04400697,161.3,161.27,3.0989]
[1724520263312,0.04400697,161.3,161.26,0.0454724]
[1724520263615,19.04,161.27,161.26,0.0454724]
[1724520264009,19.04,161.27,161.19,24.78]
[1724520264210,19.04,161.23,161.19,24.78]
[1724520264409,22.1399,161.23,161.17,3.1007]
[1724520265012,0.04062932,161.22,161.18,3.14414516]
[1724520265518,0.04062932,161.22,161.18,0.04354516]
[1724520266338,3.14062932,161.22,161.18,0.04354516]
[1724520266819,0.04062932,161.22,161.18,0.04354516]
[1724520267315,0.04062932,161.22,161.19,3.02503826]
[1724520267519,0.04062932,161.22,161.18,19.08354516]
[1724520269117,0.04062932,161.22,161.18,0.04354516]
[1724520272920,0.04062932,161.22,161.18,19.08354516]
[1724520273319,0.04062932,161.22,161.19,3.1005]
[1724520274119,0.04062932,161.22,161.18,19.08354516]
[1724520275317,0.04062932,161.22,161.18,3.14414516]
[1724520276324,0.04062932,161.22,161.18,0.04354516]
[1724520277818,19.04,161.21,161.18,0.04354516]
[1724520278228,19.04,161.19,161.18,0.04354516]
[1724520278827,22.1405,161.19,161.18,0.04354516]
[1724520280026,0.04062932,161.22,161.18,0.04354516]
[1724520283032,0.04062932,161.22,161.19,3.1005]
[1724520283632,0.04062932,161.22,161.18,3.14414516]
[1724520283830,0.04062932,161.22,161.18,0.04354516]
[1724520284632,3.14052932,161.22,161.18,0.04354516]
[1724520284834,0.04062932,161.22,161.18,0.04354516]
[1724520286132,0.04062932,161.22,161.18,3.14414516]
[1724520286436,0.04062932,161.22,161.18,0.04354516]
[1724520286835,0.04062932,161.22,161.19,3.1003]
[1724520287035,0.04062932,161.22,161.18,0.04354516]
[1724520288546,0.04062932,161.22,161.18,3.14424516]
[1724520288754,0.04062932,161.22,161.18,0.04354516]
[1724520290442,0.04062932,161.22,161.18,3.14424516]
[1724520290746,0.04062932,161.22,161.18,0.04354516]
[1724520290945,3.14052932,161.22,161.18,0.04354516]
[1724520291944,0.04062932,161.22,161.18,0.04354516]
[1724520293546,0.04062932,161.22,161.18,3.14414516]
[1724520293947,0.04062932,161.22,161.18,0.04354516]
[1724520294543,0.04062932,161.22,161.18,3.14424516]
[1724520294941,0.04062932,161.22,161.18,0.04354516]
[1724520296443,0.04062932,161.22,161.19,3.1005]
[1724520296749,0.04062932,161.22,161.18,0.04354516]
[1724520297338,3.14062932,161.22,161.18,0.04354516]
[1724520298843,0.04062932,161.22,161.18,0.04354516]
[1724520300450,3.14062932,161.22,161.18,0.04354516]
[1724520301550,0.04062932,161.22,161.18,0.04354516]
[1724520302449,3.14052932,161.22,161.18,0.04354516]
[1724520302648,0.04062932,161.22,161.18,0.04354516]
[1724520303154,3.1005,161.19,161.18,0.04354516]
[1724520303352,0.04062932,161.22,161.18,0.04354516]
[1724520305445,3.14052932,161.22,161.18,0.04354516]
[1724520307852,22.19052932,161.22,161.18,0.04354516]
[1724520309455,3.14052932,161.22,161.18,0.04354516]
[1724520310856,0.04062932,161.22,161.18,0.04354516]
[1724520312360,3.14062932,161.22,161.18,3.14414516]
[1724520312762,0.04062932,161.22,161.18,0.04354516]
[1724520314464,3.14052932,161.22,161.18,3.14414516]
[1724520317776,3.1005,161.19,161.18,0.04354516]
[1724520318673,19.05,161.2,161.03,244.05]
[1724520318674,38.1,161.2,161.03,244.05]
[1724520318873,19.05,161.13,161.04,4.06613388]
[1724520319089,19.05,161.13,161.05,1.01883998]
[1724520319573,0.04568289,161.11,161.05,1.01883998]
[1724520320877,0.04568289,161.11,161.04,3.0472939]
[1724520321172,0.04568289,161.11,161.05,1.01890344]
[1724520321477,0.04568289,161.11,161.08,3.1026]
[1724520323570,0.04568289,161.11,161.05,3.14134355]
[1724520323776,0.04568289,161.11,161.03,20.3211]
[1724520323969,0.04568289,161.11,161.08,3.1026]
[1724520324176,0.04568289,161.11,161.05,19.05]
[1724520324377,0.04568289,161.11,161.06,1.01887221]
[1724520324575,0.04568289,161.11,161.1,3.1022]
[1724520324972,19.05,161.19,161.1,19.05]
[1724520325180,19.05,161.22,161.12,19.05]
[1724520325380,19.05,161.24,161.14,19.05]
[1724520325576,19.05,161.24,161.14,22.20808911]
[1724520325975,0.04618155,161.21,161.17,0.0448438]
[1724520326174,0.04618155,161.21,161.17,0.04303173]
[1724520326376,0.04618155,161.21,161.18,3.1005]
[1724520326577,0.04618155,161.21,161.17,0.04303173]
[1724520327270,0.04618155,161.21,161.18,19.05]
[1724520327676,19.05,161.3,161.2,19.05]
[1724520327874,19.05,161.32,161.22,19.05]
[1724520328081,3.0982,161.31,161.15,2.5784]
[1724520328280,19.05,161.32,161.23,19.05]
[1724520328475,19.05,161.34,161.25,19.05]